Workbook

Sheet 1
A1: Школа | B1: МБОУ "СОШ № 27" НМР РТ | E1: Отд./корп | I1: День | J1: 15.11.2023г.
A3: Прием пищи | B3: Раздел | C3: № рец. | D3: Блюдо | E3: Выход, г | F3: Цена | G3: Калорийность | H3: Белки | I3: Жиры | J3: Углеводы
A4: Завтрак | B4: гор.блюдо | D4: Яблоко, каша гречневая молочная с маслом сливоч. | E4: 305.00 | G4: =47+385.05 -> 432.05 | H4: =0.4+15.78 -> 16.18 | I4: =0.4+18.48 -> 18.88 | J4: =9.8+32.21 -> 42.01
B5: гор.напиток | D5: Чай с сахаром | E5: 200.00 | G5: 32.00 | H5: 0.07 | I5: 0.02 | J5: 8.00
B6: хлеб | D6: Батон нарезной | E6: 50.00 | G6: 131.00 | H6: 3.75 | I6: 1.45 | J6: 25.70
E8: =E4+E5+E6+E7 -> 555.00 | G8: =G4+G5+G6+G7 -> 595.05 | H8: =H4+H5+H6+H7 -> 20.00 | I8: 20.35 | J8: 75.71
A9: Завтрак 2 | B9: фрукты
A12: Обед | B12: закуска
B13: 1 блюдо | D13: Суп лапша домашняя с картофелем | E13: 200.00 | G13: 92.60 | H13: =5.05 -> 5.05 | I13: =5.43 -> 5.43 | J13: =9.3 -> 9.30
B14: 2 блюдо | D14: Плов из курин.грудки, кукуруза консерв. | E14: 230.00 | G14: =370.5+29.79 -> 400.29 | H14: =14.42+0.86 -> 15.28 | I14: =18.43+1.85 -> 20.28 | J14: =40.93+2.41 -> 43.34
B15: гарнир
B16: напиток | D16: Кисель | E16: 200.00 | G16: 143.60 | H16: 0.60 | I16: 0.10 | J16: 30.20
B17: хлеб бел. | D17: Хлеб пшеничный | E17: 25.00 | G17: 58.75 | H17: 1.90 | I17: 0.20 | J17: 12.30
B18: хлеб черн. | D18: Хлеб ржаной | E18: 45.00 | G18: 89.10 | H18: 2.97 | I18: 0.54 | J18: 17.82
E20: =E13+E14+E15+E16+E17+E18+E12 -> 700.00 | G20: =G13+G12+G14+G15+G16+G17+G18 -> 784.34 | H20: =H13+H12+H14+H15+H16+H17+H18 -> 25.80 | I20: 26.55 | J20: 112.96
